Cogmind - Beta 14 @@@ ROGUE MODE // 2024.09.17 @ 18:14:01 Player: GR4C3 Result: Destroyed by RL-03L(R) with Subdweller Laser Performance ------------- Evolutions (0) 0 Regions Visited (2) 400 Robots Destroyed (22) 110 Value Destroyed (490) 490 Prototype IDs (0) 0 Alien Tech Used (0) 0 Bonus (0) 0 TOTAL SCORE: 1000 Bonus ------- None Cogmind --------- Core Integrity 0/250 Matter 157/300 Energy 92/100 System Corruption 0% Temperature Cool (6) Movement Core (50) Location -10/Subcaves Parts ------- > --- POWER (1) -------- (None) > --- PROPULSION (2) --- (None) > --- UTILITY (2) ------ Visual Processing Unit > --- WEAPON (2) ------- Small Laser > --- INVENTORY (5) ---- (None) Peak State ------------ > --- POWER ------------ Ion Engine > --- PROPULSION ------- Aluminum Leg Aluminum Leg > --- UTILITY ---------- Small Storage Unit Improved Terrain Scanner > --- WEAPON ----------- Medium Laser Assault Rifle > --- INVENTORY -------- Small Laser [Rating: 9] Favorites ----------- Power Ion Engine Engine Ion Engine Propulsion Aluminum Leg Leg Aluminum Leg Utility Improved Terrain Scanner Device Improved Terrain Scanner Storage Small Storage Unit Processor Signal Interpreter Weapon Assault Rifle Energy Gun Medium Laser Ballistic Gun Assault Rifle Launcher Grenade Launcher Build | -11 -10 -10 ------- Run | Yrd Mat Sub Slots Evolved . | . . . Power . | . . . Propulsion . | . . . Utility . | . . . Weapon . | . . . Parts Attached 22 | 7 7 8 Power 1 | 1 . . Engine 1 | 1 . . Core . | . . . Reactor . | . . . Propulsion 5 | 1 3 1 Treads . | . . . Leg 5 | 1 3 1 Wheel . | . . . Hover . | . . . Flight . | . . . Utility 6 | 2 2 2 Device 3 | 1 1 1 Storage 1 | 1 . . Processor 2 | . 1 1 Hackware . | . . . Protection . | . . . Artifact . | . . . Weapon 10 | 3 2 5 Energy Gun 5 | 2 1 2 Energy Cannon . | . . . Ballistic Gun 3 | 1 . 2 Ballistic Cannon . | . . . Launcher 2 | . 1 1 Special Weapon . | . . . Impact Weapon . | . . . Slashing Weapon . | . . . Piercing Weapon . | . . . Special Melee Weapon . | . . . Unidentified Prototypes . | . . . Parts Lost 9 | . . 9 Power 1 | . . 1 Propulsion 3 | . . 3 Utility 2 | . . 2 Weapon 3 | . . 3 Highest Loss Streak 9 | . . 9 To Critical Strikes . | . . . Average Slot Usage (%) 91 | . 96 78 Engine 12 | . 14 9 Leg 23 | . 24 20 Device 15 | . 14 20 Storage 7 | . 9 . Processor 3 | . 4 2 Energy Gun 13 | . 14 13 Ballistic Gun 11 | . 11 8 Launcher 2 | . 2 2 Peak Build Rating 9 | 8 9 9 Average Rating 7 | 5 8 6 On Entrance 5 | . 8 7 Naked Turns . | . . . Heaviest Build 15 | 15 15 11 Greatest Support 20 | 10 20 20 Greatest Overweight (x) 1 | 1 1 . Average Overweight (x) . | . . . Largest Inventory Capacity 8 | 8 8 5 Average Capacity 6 | 7 7 5 Most Carried 6 | 4 6 4 Average Carried 2 | 1 3 2 Final Capacity 8 | 8 5 5 Final Carried 5 | 2 5 . Class Distribution -------------------- 100% | Mutant Dominant Class ---------------- Mutant | -10/Materials Mutant | -10/Subcaves Resources | -11 -10 -10 ----------- Run | Yrd Mat Sub Matter Collected 501 | 282 180 39 Remotely . | . . . Salvage Created 585 | 132 399 54 Parts 43 | 9 30 4 Haulers Intercepted . | . . . Recyclers Shooed . | . . . Parts Field Recycled . | . . . Retrieved Matter . | . . . Parts Self-Destructed 8 | . . 8 Prevented . | . . . Kills | -11 -10 -10 ------- Run | Yrd Mat Sub Combat Hostiles Destroyed 16 | . 13 3 Guns 10 | . 9 1 AOE 6 | . 4 2 Classes Destroyed 6 | 2 3 1 Tunneler 3 | 2 1 . Recycler 1 | 1 . . Watcher 2 | . 2 . Swarmer 6 | . 6 . Grunt 7 | . 7 . Subdweller 3 | . . 3 Best Kill Streak 5 | 2 5 2 Combat Bots Only 5 | . 5 2 Max Kills in Single Turn 3 | 2 3 1 Gunslinging . | . . . Exploded 3 | . 3 1 Melee . | . . . Uniques/NPCs Destroyed . | . . . Combat | -11 -10 -10 -------- Run | Yrd Mat Sub Hostile Shots Fired 77 | . 47 30 Missed 27 | . 17 10 Damage Taken 976 | . 346 630 Core 254 | . 89 165 Absorbed by Shields . | . . . Core Remaining (%) 100 | 100 . . Volleys Fired 61 | 6 42 13 Largest 2 | 2 2 2 Hottest 80 | 70 70 80 Shots Fired 119 | 12 83 24 Gun 106 | 12 77 17 Cannon . | . . . Launcher 13 | . 6 7 Special . | . . . Kinetic 47 | 6 36 5 Thermal 59 | 6 41 12 Explosive 13 | . 6 7 Electromagnetic . | . . . Robot Hit Streak 10 | 5 10 5 Robot Miss Streak 6 | 1 6 2 Penetration Max . | . . . Secondary Targets . | . . . Shots Hit Robots 67 | 8 44 15 Core Hits 36 | 4 23 9 Critical Kills . | . . . Critical Parts Destroyed . | . . . Critical Strikes 2 | . 2 . Burn 2 | . 2 . Melee Attacks . | . . . Impact . | . . . Slashing . | . . . Piercing . | . . . Sneak Attacks . | . . . Combat Hostiles . | . . . Follow-up Attacks . | . . . Damage Inflicted 1330 | 131 705 494 Guns 812 | 131 556 125 Cannons . | . . . Explosions 515 | . 146 369 Melee . | . . . Ramming 3 | . 3 . Kinetic 405 | 67 297 41 Thermal 407 | 64 259 84 Explosive 515 | . 146 369 Electromagnetic . | . . . Impact . | . . . Slashing . | . . . Piercing . | . . . Highest Corruption . | . . . Average Corruption . | . . . Corruption Purged . | . . . Corruption Blocked . | . . . Overload Shots . | . . . Overflow Damage . | . . . Projectiles . | . . . Explosions . | . . . Melee . | . . . Knockbacks . | . . . Impact . | . . . Kinetic . | . . . Secondary . | . . . Self-Inflicted Damage 39 | . 19 20 Shots 2 | . 1 1 Rammed . | . . . Targets Rammed 2 | . 2 . Kicked 2 | . 2 . Crushed . | . . . Highest Temperature 108 | 36 108 . Average Temperature 24 | 16 25 . Received Heat Transfer 222 | . 138 84 Siege Activations . | . . . Robots Corrupted . | . . . Combat Hostiles . | . . . Parts Fried . | . . . Impact Corruptions . | . . . Robots Melted . | . . . Combat Hostiles . | . . . Parts Melted 2 | 1 1 . Heat Transferred 1273 | 185 901 187 Parts Sabotaged . | . . . Parts Stolen . | . . . Parts Stripped . | . . . Power Chain Reactions . | . . . Alert | -11 -10 -10 ------- Run | Yrd Mat Sub Peak Influence 256 | 15 256 . Initial 9 | . 9 . Average 61 | 5 74 . Maximum Alert Level 1 | . 1 . Low Security (%) 96 | 100 95 . Level 1 3 | . 4 . Level 2 . | . . . Level 3 . | . . . Level 4 . | . . . Level 5 . | . . . High Security . | . . . Max Security . | . . . Squads Dispatched 3 | . 3 . Investigation 1 | . 1 . Extermination . | . . . Reinforcement 2 | . 2 . Assault . | . . . Garrison . | . . . Intercept . | . . . Searches Triggered . | . . . Construction Impeded . | . . . Haulers Reinforced . | . . . Active Scanning Responses . | . . . Cargo Convoy Interrupts . | . . . Stealth | -11 -10 -10 --------- Run | Yrd Mat Sub Distress Signals 3 | . 3 . Communications Jammed . | . . . Distress Signals . | . . . Times Spotted 29 | . 21 8 Peak Tracking Total 6 | . 6 4 Tactical Retreats . | . . . Traps | -11 -10 -10 ------- Run | Yrd Mat Sub Traps Triggered 1 | . 1 . Indirectly . | . . . Trap Hack Attempts . | . . . Triggered . | . . . Disarmed . | . . . Reprogrammed . | . . . Reused . | . . . Traps Extracted . | . . . Installed . | . . . Triggered . | . . . Machines | -11 -10 -10 ---------- Run | Yrd Mat Sub Machines Disabled 1 | . 1 . Max in Single Turn 1 | . 1 . Machines Repaired . | . . . Machines Dismantled . | . . . Machines Sabotaged . | . . . Overloaded Fab Kills . | . . . Hacking | -11 -10 -10 --------- Run | Yrd Mat Sub Machines Accessed 1 | . 1 . Terminals 1 | . 1 . Fabricators . | . . . Repair Stations . | . . . Recycling Units . | . . . Scanalyzers . | . . . Garrison Access . | . . . Total Hacks 1 | . 1 . Successful 1 | . 1 . Failed . | . . . Catastrophic . | . . . Database Lockouts . | . . . Manual . | . . . Terminals 1 | . 1 . Fabricators . | . . . Repair Stations . | . . . Recycling Units . | . . . Scanalyzers . | . . . Garrison Access . | . . . Terminal Hacks 1 | . 1 . Record 1 | . 1 . Fabricator Hacks . | . . . Repair Station Hacks . | . . . Recycling Unit Hacks . | . . . Scanalyzer . | . . . Garrison Access Hacks . | . . . Unauthorized Hacks . | . . . Terminals . | . . . Fabricators . | . . . Repair Stations . | . . . Recycling Units . | . . . Scanalyzers . | . . . Garrison Access . | . . . Data Cores Recovered . | . . . Used . | . . . Hacking Detections 1 | . 1 . Full Trace Events . | . . . Feedback Events . | . . . Feedback Blocked . | . . . Robot Schematics Acquired . | . . . Robots Built . | . . . Authchips . | . . . Time . | . . . Total Robot Build Rating . | . . . Part Schematics Acquired . | . . . Parts Built . | . . . Authchips . | . . . Time . | . . . Total Part Build Rating . | . . . Parts Repaired . | . . . Time . | . . . Parts Recycled . | . . . Recycled Matter . | . . . Retrieved Matter . | . . . Retrieved Components . | . . . Parts Scanalyzed . | . . . Part Schematics Acquired . | . . . Parts Damaged . | . . . Bothacking | -11 -10 -10 ------------ Run | Yrd Mat Sub Used RIF Installer . | . . . Robots Hacked . | . . . Non-combat . | . . . Combat . | . . . Robot Hacks Applied . | . . . Relay Couplers Released . | . . . Fabnet Peak Effective % . | . . . Robots Rewired . | . . . Allies Hacked . | . . . Hacks Repelled . | . . . Allies | -11 -10 -10 -------- Run | Yrd Mat Sub Total Allies . | . . . Largest Group . | . . . Highest-Rated Group . | . . . Highest-Rated Ally . | . . . Total Orders . | . . . Ally Attacks . | . . . Total Damage . | . . . Kills . | . . . Allies Corrupted . | . . . Allies Melted . | . . . Intel | -11 -10 -10 ------- Run | Yrd Mat Sub Robot Analysis Total . | . . . Derelict Logs Recovered . | . . . Drone Launches . | . . . Drone Recoveries . | . . . Exploration | -11 -10 -10 ------------- Run | Yrd Mat Sub Turns Passed 945 | 140 589 216 Spaces Moved 578 | 66 321 191 Core 93 | 9 . 84 Treads . | . . . Legs 485 | 57 321 107 Wheels . | . . . Hover . | . . . Flight . | . . . Fastest Speed 50 | 50 120 50 Average Speed 124 | 163 137 89 Slowest Speed 190 | 190 190 120 Overloaded Moves . | . . . Propulsion Burnouts . | . . . Robots Hopped . | . . . Cave-ins Triggered . | . . . Exploration Rate (%) 23 | 4 48 17 Regions Visited 2 Branch Regions 1 Pre-discovered Areas . | . . . Known Exits Taken 1 | . 1 . Unknown Exits Taken 1 | 1 . . Scrap Searched . | . . . Spaces Dug . | . . . Terrain Destroyed 47 | . 33 14 Melee . | . . . Projectile . | . . . AOE 47 | . 33 14 Terrain Rammed . | . . . Walls Destroyed . | . . . Machines Disabled . | . . . Actions | -11 -10 -10 --------- Run | Yrd Mat Sub Total 682 | 86 384 212 Wait 1 | . 1 . Move 576 | 65 320 191 Hop . | . . . Pick Up 16 | 8 8 . Fast Attach . | . . . Attach 11 | 6 1 4 Detach . | . . . Swap 11 | 1 6 4 Drop 4 | . 4 . Fire 61 | 6 42 13 Melee . | . . . Ram . | . . . Kick 2 | . 2 . Crush . | . . . Escape Stasis . | . . . Rewire . | . . . Trap . | . . . Miscellaneous . | . . . Route ------- -11/Scrapyard -10/Materials (discovered 4 exits: *Mat / *Min x2 / *Sub) -10/Subcaves History --------- Turn | Location | Event 25 | -11/Scrapyard | Discovered new exit (range 15) 141 | -11/Scrapyard | Entered Materials 314 | -10/Materials | Build established: Mutant 395 | -10/Materials | Discovered new exit (range 6) 431 | -10/Materials | Discovered new exit (range 10) 525 | -10/Materials | Discovered new exit (range 14) 576 | -10/Materials | Identified exit to Materials 586 | -10/Materials | Discovered new exit (range 16) 638 | -10/Materials | Identified exit to Mines 729 | -10/Materials | Identified exit to Subcaves 730 | -10/Materials | Entered Subcaves 865 | -10/Subcaves | A swath of the cavern ceiling suddenly collapsed 877 | -10/Subcaves | Core integrity fell below 50% 886 | -10/Subcaves | Ambushed by Subdweller buried in earth 905 | -10/Subcaves | Core integrity fell below 20% 934 | -10/Subcaves | Lost 9 parts (1p3n2u3w) 946 | -10/Subcaves | Destroyed by RL-03L(R) with Subdweller Laser Last Messages --------------- 00778_ Subatomizers dissect the Sub. Machine Gun, destroying it. 00782_ Acquired 12 matter. 00796_ Acquired 10 matter. A swath of the cavern ceiling suddenly collapses. 00871_ Grenade Launcher destroyed. 00873_ Aluminum Leg destroyed. 00873_ Imp. Terrain Scanner destroyed. 00875_ Aluminum Leg destroyed. 00877_ Ion Engine destroyed. 2R-BPS(R) emerges from concealment. 00886_ Med. Laser destroyed. 00887_ TO-1ZA(R): "ARGHSUB!" 00891_ Sensor Array destroyed. 00895_ TO-1ZA(R) destroyed. 00903_ Aluminum Leg destroyed. 00903_ Assault Rifle destroyed. 00904_ Subatomizers dissect the Sub. Power Source. Map ----- +----------------------------------------------------+ | ?????????????????????????????????????????????????? | | ?????????????????????????????????????????????????? | | ?????????????????????????????????????????????????? | | ?????????????????????????????????????????????????? | | ?????????????????????????????????????????????????? | | ?????????????????????????????????????????????????? | | ?????????????????????????????????????????????????? | | ?????????????????????????????????????????????????? | | ?????????????????????????????????????????????????? | | ?????????????????????????????????????????????????? | | ?????????##??????????????????????????????????????? | | ?????????# #?????????????????????????????????????# | | ??????#### ?????????????????????????????????????# | | ??????? # ???????????????????????????????????## | | ???????? ???????????????????????????????????# | | ????????? ???????????????????????????????????# | | ?????????# ??????????????????????????????????## | | ???? ##### #???###########??????????????###### | | ????% %%&! ##?# ######??######## | | ????? &* #?# # # #### # | | ????????= #???# | | ??????????# ####?# ## # | | ???????????# # ### ### # # # # ##### | | ???????????## # ################ #???? | | ???????????# #### #?###???????? #???? | | ???????????# ##??##@### ##??????### # ##???? | | ???????????## #????# ##???????#####????? | | ???????????# #????# #????????????????? | | ???????????# ### #???## ###????????????????? | | ???????????# #?# ##?## ####??????????????????? | | ???????????## ##?# ### #?????????????????????? | | ????????????##???# ## #????????????????????? | | ?????????????????##### "" ????????????????? | | ?????????????????????## R""""" ???????????????? | | ??????????????????????##"""" #""# ???????????????? | | ????????????????????????#" #?##????????????????? | | ????????????????????????# #???????????????????? | | ???????????????????????? #??????????????????? | | ???????????????????????? ## ##??????????????????? | | ????????????????????????#?? "#???????????????????? | | ???????????????????????????"" ???????????????????? | | ???????????????????????????"?????????????????????? | | ?????????????????????????????????????????????????? | | ?????????????????????????????????????????????????? | | ?????????????????????????????????????????????????? | | ?????????????????????????????????????????????????? | | ?????????????????????????????????????????????????? | | ?????????????????????????????????????????????????? | | ?????????????????????????????????????????????????? | | ?????????????????????????????????????????????????? | +----------------------------------------------------+ Best States ------------- Heat Dissipation 25 Energy Generation 10 Energy Capacity 250 Matter Stores 300 Matter Capacity 300 Sight Range 18 Robot Scan Range 14 Terrain Scan Range 16 Terrain Scan Density 10 Evasion (%) 55 Item Schematics ----------------- None Robot Schematics ------------------ None Fabricated ------------ Nothing Alien Tech Used ----------------- None Achievements -------------- None Challenges ------------ None Game ------ Seed PhasingHeatArray Manual? 0 Play Time 00:25:34 Cumulative 60.4 hours Start 2024.09.17 @ 14:36:52 End 2024.09.17 @ 18:14:01 Sessions 1 Manual Loads 0 Difficulty Rogue Special Mode None Game No. 45 Rogue 31 Adventurer 14 Explorer 0 Win Type - Total 0 Types 0/0/0/0/0/0/0/0/0 Lore% 17 Gallery% 35 Achievement% 24 Wizard Run 0 Options --------- Layout 1 ASCII 0 Keyboard 0 Movement Mouse Keybinds 0 Fullscreen 0 Font 20/SmallcapsGlow Map View 50x35 Zoom Use 0% Tactical HUD 1 Map Filters NONE Filters NONE Steam 1 RUN: 909c7465-6fbc-449a-b937-8f3610320dda